[Event "Titled Tuesday Blitz August 08 Late 2023"]
[White "Sun, Rick"]
[Black "Hambleton, Aman"]
[WhiteFideId "30909481"]
[BlackFideId "2606577"]
[WhiteElo "2613"]
[BlackElo "2769"]
[Result "1-0"]
[Round "10"]
[TimeControl "180+1"]
[Date "2023.08.08"]
[WhiteClock "0:00:08"]
[BlackClock "0:00:00"]
[Board "23"]

1. e4 {[%clk 0:03:00]}  b6 {[%clk 0:03:00]} 2. d4 {[%clk 0:03:00]}  Bb7 {[%clk 0:02:59]} 3. Nc3 {[%clk 0:03:01]}  e6 {[%clk 0:02:58]} 4. Nf3 {[%clk 0:03:00]}  Bb4 {[%clk 0:02:58]} 5. Bd3 {[%clk 0:03:00]}  Nf6 {[%clk 0:02:59]} 6. Qe2 {[%clk 0:02:58]}  d5 {[%clk 0:02:59]} 7. e5 {[%clk 0:02:58]}  Ne4 {[%clk 0:03:00]} 8. Bd2 {[%clk 0:02:59]}  Bxc3 {[%clk 0:03:00]} 9. bxc3 {[%clk 0:02:58]}  Nc6 {[%clk 0:03:00]} 10. O-O {[%clk 0:02:56]}  h6 {[%clk 0:03:01]} 11. c4 {[%clk 0:02:34]}  Nxd2 {[%clk 0:02:59]} 12. Qxd2 {[%clk 0:02:33]}  dxc4 {[%clk 0:02:59]} 13. Bxc4 {[%clk 0:02:34]}  Qd7 {[%clk 0:02:58]} 14. c3 {[%clk 0:02:31]}  Na5 {[%clk 0:02:42]} 15. Be2 {[%clk 0:02:31]}  Rc8 {[%clk 0:02:40]} 16. Rfd1 {[%clk 0:02:26]}  c5 {[%clk 0:02:37]} 17. Qf4 {[%clk 0:02:18]}  cxd4 {[%clk 0:02:36]} 18. Nxd4 {[%clk 0:01:59]}  Qe7 {[%clk 0:02:20]} 19. Bb5+ {[%clk 0:01:43]}  Nc6 {[%clk 0:02:18]} 20. Nxc6 {[%clk 0:01:07]}  Bxc6 {[%clk 0:02:16]} 21. Qa4 {[%clk 0:01:08]}  Qc5 {[%clk 0:01:06]} 22. Bxc6+ {[%clk 0:01:00]}  Qxc6 {[%clk 0:00:40]} 23. Qxa7 {[%clk 0:00:40]}  O-O {[%clk 0:00:40]} 24. Rab1 {[%clk 0:00:33]}  Qxc3 {[%clk 0:00:29]} 25. Qxb6 {[%clk 0:00:29]}  Ra8 {[%clk 0:00:09]} 26. Qb2 {[%clk 0:00:23]}  Qa5 {[%clk 0:00:04]} 27. Ra1 {[%clk 0:00:22]}  Rfb8 {[%clk 0:00:02]} 28. Qe2 {[%clk 0:00:22]}  Qa3 {[%clk 0:00:02]} 29. h4 {[%clk 0:00:13]}  Rb4 {[%clk 0:00:02]} 30. Rd3 {[%clk 0:00:11]}  Qa4 {[%clk 0:00:01]} 31. Qf3 {[%clk 0:00:10]}  Rab8 {[%clk 0:00:00]} 32. Rad1 {[%clk 0:00:08]} 1-0


[Site "https://www.chess.com"]

[Event "Titled Tuesday Blitz August 08 Late 2023"]
[White "Nazari, Arad"]
[Black "Hnydiuk, Aleksander"]
[WhiteFideId "12577324"]
[BlackFideId "1109057"]
[WhiteElo "2764"]
[BlackElo "2566"]
[Result "1-0"]
[Round "10"]
[TimeControl "180+1"]
[Date "2023.08.08"]
[WhiteClock "0:00:20"]
[BlackClock "0:00:00"]
[Board "24"]

1. e4 {[%clk 0:02:48]}  e5 {[%clk 0:02:58]} 2. f4 {[%clk 0:02:44]}  exf4 {[%clk 0:02:50]} 3. Nf3 {[%clk 0:02:44]}  d5 {[%clk 0:02:46]} 4. exd5 {[%clk 0:02:44]}  Nf6 {[%clk 0:02:44]} 5. Bb5+ {[%clk 0:02:44]}  Bd7 {[%clk 0:02:40]} 6. Bxd7+ {[%clk 0:02:43]}  Qxd7 {[%clk 0:02:41]} 7. O-O {[%clk 0:02:40]}  Nxd5 {[%clk 0:02:39]} 8. c4 {[%clk 0:02:40]}  Nf6 {[%clk 0:02:36]} 9. d4 {[%clk 0:02:40]}  Be7 {[%clk 0:02:27]} 10. Bxf4 {[%clk 0:02:38]}  O-O {[%clk 0:02:27]} 11. Nc3 {[%clk 0:02:35]}  Bd6 {[%clk 0:02:25]} 12. Ne5 {[%clk 0:02:24]}  Bxe5 {[%clk 0:02:12]} 13. Bxe5 {[%clk 0:02:25]}  Ng4 {[%clk 0:02:05]} 14. Bf4 {[%clk 0:02:21]}  Nc6 {[%clk 0:01:54]} 15. h3 {[%clk 0:02:10]}  Nf6 {[%clk 0:01:48]} 16. d5 {[%clk 0:02:11]}  Nb4 {[%clk 0:01:43]} 17. a3 {[%clk 0:02:05]}  Na6 {[%clk 0:01:43]} 18. Be5 {[%clk 0:02:00]}  Ne8 {[%clk 0:01:37]} 19. Qd4 {[%clk 0:01:57]}  f6 {[%clk 0:01:30]} 20. Bg3 {[%clk 0:01:55]}  Nd6 {[%clk 0:01:29]} 21. Bxd6 {[%clk 0:01:36]}  cxd6 {[%clk 0:01:23]} 22. Rae1 {[%clk 0:01:30]}  b6 {[%clk 0:01:14]} 23. b4 {[%clk 0:01:18]}  Rfe8 {[%clk 0:01:10]} 24. Qf4 {[%clk 0:01:11]}  Nc7 {[%clk 0:01:05]} 25. Ne4 {[%clk 0:00:50]}  Re5 {[%clk 0:01:05]} 26. Qg3 {[%clk 0:00:38]}  Kh8 {[%clk 0:01:02]} 27. Nd2 {[%clk 0:00:37]}  Rae8 {[%clk 0:01:00]} 28. Nf3 {[%clk 0:00:35]}  Rxe1 {[%clk 0:00:48]} 29. Rxe1 {[%clk 0:00:36]}  Rxe1+ {[%clk 0:00:42]} 30. Qxe1 {[%clk 0:00:37]}  b5 {[%clk 0:00:42]} 31. Qe3 {[%clk 0:00:33]}  bxc4 {[%clk 0:00:34]} 32. Qxa7 {[%clk 0:00:33]}  h6 {[%clk 0:00:25]} 33. b5 {[%clk 0:00:26]}  Qe7 {[%clk 0:00:15]} 34. b6 {[%clk 0:00:20]}  Qe3+ {[%clk 0:00:12]} 35. Kh1 {[%clk 0:00:21]}  Nxd5 {[%clk 0:00:09]} 36. Qa8+ {[%clk 0:00:21]}  Kh7 {[%clk 0:00:09]} 37. Qxd5 {[%clk 0:00:21]}  Qxb6 {[%clk 0:00:07]} 38. Qxc4 {[%clk 0:00:20]}  Qa5 {[%clk 0:00:03]} 39. Qd3+ {[%clk 0:00:19]}  Kh8 {[%clk 0:00:00]} 40. Kh2 {[%clk 0:00:20]} 1-0


[Site "https://www.chess.com"]

[Event "Titled Tuesday Blitz August 08 Late 2023"]
[White "Mekhitarian, Krikor Sevag"]
[Black "Ibadov, Dashgyn"]
[WhiteFideId "2107660"]
[BlackFideId "24107514"]
[WhiteElo "2755"]
[BlackElo "2536"]
[Result "1-0"]
[Round "10"]
[TimeControl "180+1"]
[Date "2023.08.08"]
[WhiteClock "0:00:12"]
[BlackClock "0:00:00"]
[Board "25"]

1. Nf3 {[%clk 0:03:00]}  d5 {[%clk 0:02:58]} 2. c4 {[%clk 0:03:00]}  d4 {[%clk 0:02:58]} 3. b4 {[%clk 0:03:00]}  Bg4 {[%clk 0:02:56]} 4. g3 {[%clk 0:02:57]}  Bxf3 {[%clk 0:02:53]} 5. exf3 {[%clk 0:02:58]}  e5 {[%clk 0:02:50]} 6. Bg2 {[%clk 0:02:57]}  Bxb4 {[%clk 0:02:37]} 7. f4 {[%clk 0:02:57]}  Nc6 {[%clk 0:02:29]} 8. O-O {[%clk 0:02:54]}  exf4 {[%clk 0:02:04]} 9. Qb3 {[%clk 0:02:25]}  Nge7 {[%clk 0:01:56]} 10. a3 {[%clk 0:02:24]}  Bd6 {[%clk 0:01:28]} 11. Qxb7 {[%clk 0:02:24]}  Rb8 {[%clk 0:01:17]} 12. Qa6 {[%clk 0:01:33]}  Qd7 {[%clk 0:01:09]} 13. d3 {[%clk 0:01:22]}  O-O {[%clk 0:01:08]} 14. Nd2 {[%clk 0:01:20]}  Ne5 {[%clk 0:01:05]} 15. c5 {[%clk 0:01:18]}  Bxc5 {[%clk 0:01:01]} 16. Ne4 {[%clk 0:01:18]}  Bb6 {[%clk 0:00:50]} 17. Bxf4 {[%clk 0:01:17]}  N7g6 {[%clk 0:00:49]} 18. Bd2 {[%clk 0:01:08]}  f5 {[%clk 0:00:48]} 19. Ng5 {[%clk 0:01:04]}  f4 {[%clk 0:00:47]} 20. Rfe1 {[%clk 0:00:49]}  f3 {[%clk 0:00:45]} 21. Bh3 {[%clk 0:00:49]}  Qd6 {[%clk 0:00:27]} 22. Qa4 {[%clk 0:00:34]}  h6 {[%clk 0:00:17]} 23. Ne6 {[%clk 0:00:20]}  Rfe8 {[%clk 0:00:11]} 24. Nf4 {[%clk 0:00:19]}  Nxf4 {[%clk 0:00:04]} 25. Bxf4 {[%clk 0:00:19]}  Kh8 {[%clk 0:00:03]} 26. Re4 {[%clk 0:00:15]}  Nc6 {[%clk 0:00:02]} 27. Rxe8+ {[%clk 0:00:11]}  Rxe8 {[%clk 0:00:00]} 28. Bxd6 {[%clk 0:00:12]} 1-0


[Site "https://www.chess.com"]

[Event "Titled Tuesday Blitz August 08 Late 2023"]
[White "carokannlover213"]
[Black "Grinev, Valeriy"]
[BlackFideId "14117517"]
[WhiteElo "2733"]
[BlackElo "2531"]
[Result "1-0"]
[Round "10"]
[TimeControl "180+1"]
[Date "2023.08.08"]
[WhiteClock "0:01:44"]
[BlackClock "0:01:32"]
[Board "26"]

1. e4 {[%clk 0:03:00]}  c5 {[%clk 0:02:59]} 2. Nf3 {[%clk 0:03:00]}  Nc6 {[%clk 0:03:00]} 3. Nc3 {[%clk 0:02:59]}  Nf6 {[%clk 0:02:59]} 4. Bb5 {[%clk 0:02:56]}  d6 {[%clk 0:02:58]} 5. e5 {[%clk 0:02:50]}  Ng8 {[%clk 0:02:49]} 6. O-O {[%clk 0:02:46]}  e6 {[%clk 0:02:47]} 7. exd6 {[%clk 0:02:44]}  Bxd6 {[%clk 0:02:47]} 8. d4 {[%clk 0:02:42]}  Bd7 {[%clk 0:02:43]} 9. Ne4 {[%clk 0:02:38]}  Be7 {[%clk 0:02:41]} 10. dxc5 {[%clk 0:02:34]}  a6 {[%clk 0:02:37]} 11. Ba4 {[%clk 0:02:30]}  Qa5 {[%clk 0:02:30]} 12. c3 {[%clk 0:02:24]}  Rd8 {[%clk 0:02:20]} 13. Bf4 {[%clk 0:02:20]}  e5 {[%clk 0:02:15]} 14. b4 {[%clk 0:02:09]}  Qc7 {[%clk 0:02:13]} 15. Nd6+ {[%clk 0:02:01]}  Kf8 {[%clk 0:02:05]} 16. Nxe5 {[%clk 0:01:52]}  Nxe5 {[%clk 0:02:04]} 17. Bxe5 {[%clk 0:01:53]}  Bxa4 {[%clk 0:01:57]} 18. Qxa4 {[%clk 0:01:53]}  Nf6 {[%clk 0:01:48]} 19. Nxf7 {[%clk 0:01:49]}  Qd7 {[%clk 0:01:40]} 20. Qxd7 {[%clk 0:01:44]}  Rxd7 {[%clk 0:01:41]} 21. Nxh8 {[%clk 0:01:43]}  Kg8 {[%clk 0:01:40]} 22. Rad1 {[%clk 0:01:42]}  Kxh8 {[%clk 0:01:39]} 23. Bxf6 {[%clk 0:01:42]}  Rxd1 {[%clk 0:01:40]} 24. Rxd1 {[%clk 0:01:43]}  Bxf6 {[%clk 0:01:38]} 25. Rd7 {[%clk 0:01:43]}  b6 {[%clk 0:01:37]} 26. cxb6 {[%clk 0:01:43]}  h5 {[%clk 0:01:34]} 27. b7 {[%clk 0:01:44]}  Bxc3 {[%clk 0:01:32]} 28. b8=Q+ {[%clk 0:01:44]} 1-0


[Site "https://www.chess.com"]

[Event "Titled Tuesday Blitz August 08 Late 2023"]
[White "Prohaszka, Peter"]
[Black "GaiozNigalidze"]
[WhiteFideId "726265"]
[WhiteElo "2720"]
[BlackElo "2466"]
[Result "0-1"]
[Round "10"]
[TimeControl "180+1"]
[Date "2023.08.08"]
[WhiteClock "0:00:00"]
[BlackClock "0:00:08"]
[Board "28"]

1. d4 {[%clk 0:03:00]}  Nf6 {[%clk 0:02:58]} 2. Nf3 {[%clk 0:03:01]}  c5 {[%clk 0:02:57]} 3. c3 {[%clk 0:03:01]}  d5 {[%clk 0:02:57]} 4. Bf4 {[%clk 0:02:54]}  e6 {[%clk 0:02:57]} 5. e3 {[%clk 0:02:54]}  Nc6 {[%clk 0:02:56]} 6. Nbd2 {[%clk 0:02:54]}  cxd4 {[%clk 0:02:56]} 7. exd4 {[%clk 0:02:54]}  Nh5 {[%clk 0:02:56]} 8. Be3 {[%clk 0:02:54]}  Bd6 {[%clk 0:02:57]} 9. Bb5 {[%clk 0:02:42]}  Nf4 {[%clk 0:02:50]} 10. O-O {[%clk 0:02:39]}  Ng6 {[%clk 0:02:43]} 11. Re1 {[%clk 0:02:16]}  O-O {[%clk 0:02:39]} 12. Rc1 {[%clk 0:02:15]}  Bd7 {[%clk 0:02:39]} 13. Ba4 {[%clk 0:02:14]}  a6 {[%clk 0:02:37]} 14. a3 {[%clk 0:02:14]}  b5 {[%clk 0:02:25]} 15. Bc2 {[%clk 0:02:14]}  f5 {[%clk 0:02:26]} 16. Nf1 {[%clk 0:02:13]}  h6 {[%clk 0:02:22]} 17. Bd3 {[%clk 0:02:00]}  Nf4 {[%clk 0:02:07]} 18. Bb1 {[%clk 0:01:58]}  g5 {[%clk 0:02:04]} 19. b4 {[%clk 0:01:54]}  g4 {[%clk 0:02:00]} 20. N3d2 {[%clk 0:01:53]}  Qh4 {[%clk 0:01:45]} 21. Bxf4 {[%clk 0:01:48]}  Bxf4 {[%clk 0:01:44]} 22. g3 {[%clk 0:01:48]}  Qg5 {[%clk 0:01:42]} 23. gxf4 {[%clk 0:01:48]}  Qxf4 {[%clk 0:01:43]} 24. Nb3 {[%clk 0:01:46]}  Rae8 {[%clk 0:01:27]} 25. Nc5 {[%clk 0:01:43]}  Bc8 {[%clk 0:01:26]} 26. Qd2 {[%clk 0:01:43]}  Qg5 {[%clk 0:01:26]} 27. Qxg5+ {[%clk 0:01:38]}  hxg5 {[%clk 0:01:26]} 28. Ne3 {[%clk 0:01:34]}  Kg7 {[%clk 0:01:21]} 29. Re2 {[%clk 0:01:34]}  e5 {[%clk 0:00:57]} 30. Rd1 {[%clk 0:01:22]}  exd4 {[%clk 0:00:52]} 31. Nxf5+ {[%clk 0:01:16]}  Bxf5 {[%clk 0:00:48]} 32. Rxe8 {[%clk 0:01:17]}  Rxe8 {[%clk 0:00:45]} 33. Bxf5 {[%clk 0:01:17]}  dxc3 {[%clk 0:00:45]} 34. Rxd5 {[%clk 0:01:13]}  Re1+ {[%clk 0:00:38]} 35. Kg2 {[%clk 0:01:13]}  Ne5 {[%clk 0:00:33]} 36. h3 {[%clk 0:00:38]}  gxh3+ {[%clk 0:00:26]} 37. Kxh3 {[%clk 0:00:38]}  Kf6 {[%clk 0:00:24]} 38. Be4 {[%clk 0:00:25]}  Re2 {[%clk 0:00:17]} 39. Rd6+ {[%clk 0:00:17]}  Kf7 {[%clk 0:00:17]} 40. Bd5+ {[%clk 0:00:11]}  Kg7 {[%clk 0:00:16]} 41. Nb3 {[%clk 0:00:06]}  c2 {[%clk 0:00:11]} 42. Re6 {[%clk 0:00:05]}  Nd3 {[%clk 0:00:06]} 43. Rxe2 {[%clk 0:00:03]}  Nf4+ {[%clk 0:00:07]} 44. Kg4 {[%clk 0:00:03]}  Nxe2 {[%clk 0:00:08]} 45. Kxg5 {[%clk 0:00:02]}  c1=Q+ {[%clk 0:00:08]} 46. Nxc1 {[%clk 0:00:03]}  Nxc1 {[%clk 0:00:09]} 47. Bb7 {[%clk 0:00:02]}  Ne2 {[%clk 0:00:08]} 48. f4 {[%clk 0:00:01]}  Nc3 {[%clk 0:00:08]} 49. f5 {[%clk 0:00:01]}  Nb1 {[%clk 0:00:08]} 50. Bxa6 {[%clk 0:00:01]}  Nxa3 {[%clk 0:00:08]} 51. f6+ {[%clk 0:00:00]}  Kf8 {[%clk 0:00:08]} 0-1


[Site "https://www.chess.com"]

[Event "Titled Tuesday Blitz August 08 Late 2023"]
[White "Tristan, Leonardo"]
[Black "Sreyas Payyappat"]
[WhiteFideId "113816"]
[BlackFideId "46674969"]
[WhiteElo "2774"]
[BlackElo "2539"]
[Result "0-1"]
[Round "10"]
[TimeControl "180+1"]
[Date "2023.08.08"]
[WhiteClock "0:00:00"]
[BlackClock "0:00:29"]
[Board "30"]

1. d4 {[%clk 0:03:00]}  Nf6 {[%clk 0:02:59]} 2. Nf3 {[%clk 0:03:01]}  c5 {[%clk 0:02:58]} 3. c3 {[%clk 0:03:01]}  e6 {[%clk 0:02:59]} 4. Bf4 {[%clk 0:03:01]}  Nc6 {[%clk 0:02:58]} 5. e3 {[%clk 0:03:01]}  Nh5 {[%clk 0:02:57]} 6. Bg5 {[%clk 0:02:59]}  Qb6 {[%clk 0:02:57]} 7. Qb3 {[%clk 0:02:58]}  h6 {[%clk 0:02:56]} 8. Bh4 {[%clk 0:02:58]}  g5 {[%clk 0:02:55]} 9. Bg3 {[%clk 0:02:59]}  Nxg3 {[%clk 0:02:55]} 10. hxg3 {[%clk 0:02:59]}  Bg7 {[%clk 0:02:55]} 11. Nbd2 {[%clk 0:02:59]}  d5 {[%clk 0:02:55]} 12. Be2 {[%clk 0:02:46]}  c4 {[%clk 0:02:51]} 13. Qc2 {[%clk 0:02:46]}  Qc7 {[%clk 0:02:51]} 14. e4 {[%clk 0:02:45]}  b5 {[%clk 0:02:47]} 15. O-O {[%clk 0:02:44]}  Bb7 {[%clk 0:02:45]} 16. Rfe1 {[%clk 0:02:42]}  O-O-O {[%clk 0:02:39]} 17. exd5 {[%clk 0:02:25]}  Rxd5 {[%clk 0:02:32]} 18. Ne4 {[%clk 0:02:20]}  g4 {[%clk 0:02:20]} 19. Nfd2 {[%clk 0:02:20]}  h5 {[%clk 0:02:17]} 20. a4 {[%clk 0:02:17]}  h4 {[%clk 0:01:58]} 21. axb5 {[%clk 0:02:17]}  hxg3 {[%clk 0:01:58]} 22. bxc6 {[%clk 0:01:36]}  gxf2+ {[%clk 0:01:51]} 23. Nxf2 {[%clk 0:01:37]}  Qh2+ {[%clk 0:01:31]} 24. Kf1 {[%clk 0:01:37]}  Bxc6 {[%clk 0:01:30]} 25. Bxg4 {[%clk 0:01:12]}  Rg5 {[%clk 0:01:18]} 26. Bf3 {[%clk 0:00:39]}  Rxg2 {[%clk 0:01:16]} 27. Nde4 {[%clk 0:00:10]}  Bxe4 {[%clk 0:00:58]} 28. Bxe4 {[%clk 0:00:04]}  Qg1+ {[%clk 0:00:57]} 29. Ke2 {[%clk 0:00:05]}  Qxf2+ {[%clk 0:00:57]} 30. Kd1 {[%clk 0:00:05]}  Qxc2+ {[%clk 0:00:53]} 31. Bxc2 {[%clk 0:00:06]}  Rhh2 {[%clk 0:00:47]} 32. Be4 {[%clk 0:00:07]}  Rd2+ {[%clk 0:00:44]} 33. Kc1 {[%clk 0:00:07]}  Bh6 {[%clk 0:00:44]} 34. Rxa7 {[%clk 0:00:04]}  Rxb2+ {[%clk 0:00:37]} 35. Kd1 {[%clk 0:00:03]}  Rbd2+ {[%clk 0:00:29]} 36. Kc1 {[%clk 0:00:00]}  Ra2+ {[%clk 0:00:29]} 0-1


[Site "https://www.chess.com"]

[Event "Titled Tuesday Blitz August 08 Late 2023"]
[White "Kobo, Ori"]
[Black "ElDivis"]
[WhiteFideId "2812320"]
[WhiteElo "2732"]
[BlackElo "2531"]
[Result "1-0"]
[Round "10"]
[TimeControl "180+1"]
[Date "2023.08.08"]
[WhiteClock "0:00:17"]
[BlackClock "0:00:27"]
[Board "31"]

1. e4 {[%clk 0:03:00]}  c5 {[%clk 0:02:59]} 2. Nc3 {[%clk 0:03:00]}  Nc6 {[%clk 0:02:59]} 3. Bb5 {[%clk 0:02:59]}  Nd4 {[%clk 0:02:59]} 4. Nf3 {[%clk 0:03:00]}  a6 {[%clk 0:02:59]} 5. Bd3 {[%clk 0:03:00]}  Nc6 {[%clk 0:02:58]} 6. O-O {[%clk 0:03:00]}  e6 {[%clk 0:02:59]} 7. b3 {[%clk 0:03:00]}  g6 {[%clk 0:02:54]} 8. e5 {[%clk 0:03:00]}  d5 {[%clk 0:02:53]} 9. exd6 {[%clk 0:02:59]}  Bg7 {[%clk 0:02:50]} 10. Ba3 {[%clk 0:02:52]}  b6 {[%clk 0:02:32]} 11. Be4 {[%clk 0:02:51]}  Bb7 {[%clk 0:02:31]} 12. d4 {[%clk 0:02:44]}  Qxd6 {[%clk 0:02:20]} 13. Qc1 {[%clk 0:02:20]}  f5 {[%clk 0:01:47]} 14. dxc5 {[%clk 0:02:13]}  bxc5 {[%clk 0:01:47]} 15. Rd1 {[%clk 0:02:02]}  Qe7 {[%clk 0:01:33]} 16. Bxc6+ {[%clk 0:01:58]}  Bxc6 {[%clk 0:01:34]} 17. Qe3 {[%clk 0:01:58]}  Bxf3 {[%clk 0:01:25]} 18. Qxf3 {[%clk 0:01:55]}  Rc8 {[%clk 0:01:24]} 19. Re1 {[%clk 0:01:07]}  Nf6 {[%clk 0:01:18]} 20. Qe2 {[%clk 0:01:02]}  Kf7 {[%clk 0:01:12]} 21. Na4 {[%clk 0:00:54]}  Ne4 {[%clk 0:01:05]} 22. Rad1 {[%clk 0:00:19]}  Bd4 {[%clk 0:01:05]} 23. Rxd4 {[%clk 0:00:18]}  Rhd8 {[%clk 0:00:57]} 24. Rxe4 {[%clk 0:00:18]}  fxe4 {[%clk 0:00:57]} 25. Qxe4 {[%clk 0:00:19]}  Qf6 {[%clk 0:00:57]} 26. Bb2 {[%clk 0:00:18]}  Qf5 {[%clk 0:00:56]} 27. Qe3 {[%clk 0:00:18]}  Qxc2 {[%clk 0:00:54]} 28. Qe5 {[%clk 0:00:17]}  Qf5 {[%clk 0:00:51]} 29. Qg7+ {[%clk 0:00:17]}  Ke8 {[%clk 0:00:52]} 30. Nb6 {[%clk 0:00:16]}  Rc6 {[%clk 0:00:50]} 31. Qg8+ {[%clk 0:00:15]}  Qf8 {[%clk 0:00:48]} 32. Rxe6+ {[%clk 0:00:13]}  Rxe6 {[%clk 0:00:49]} 33. Qxe6+ {[%clk 0:00:13]}  Qe7 {[%clk 0:00:48]} 34. Qxe7+ {[%clk 0:00:14]}  Kxe7 {[%clk 0:00:48]} 35. g3 {[%clk 0:00:14]}  Rd2 {[%clk 0:00:47]} 36. Nc4 {[%clk 0:00:15]}  Rc2 {[%clk 0:00:48]} 37. Kg2 {[%clk 0:00:14]}  a5 {[%clk 0:00:45]} 38. a4 {[%clk 0:00:14]}  Ke6 {[%clk 0:00:43]} 39. Kf3 {[%clk 0:00:14]}  h5 {[%clk 0:00:33]} 40. Ke3 {[%clk 0:00:14]}  h4 {[%clk 0:00:34]} 41. gxh4 {[%clk 0:00:14]}  Kf5 {[%clk 0:00:34]} 42. h3 {[%clk 0:00:14]}  g5 {[%clk 0:00:33]} 43. hxg5 {[%clk 0:00:14]}  Kxg5 {[%clk 0:00:34]} 44. f4+ {[%clk 0:00:13]}  Kf5 {[%clk 0:00:32]} 45. Kf3 {[%clk 0:00:14]}  Rh2 {[%clk 0:00:33]} 46. Ne3+ {[%clk 0:00:13]}  Ke6 {[%clk 0:00:33]} 47. Bc3 {[%clk 0:00:14]}  Rxh3+ {[%clk 0:00:31]} 48. Ke4 {[%clk 0:00:15]}  c4 {[%clk 0:00:26]} 49. bxc4 {[%clk 0:00:15]}  Rh5 {[%clk 0:00:27]} 50. f5+ {[%clk 0:00:14]}  Kd7 {[%clk 0:00:28]} 51. Bxa5 {[%clk 0:00:15]}  Rh4+ {[%clk 0:00:29]} 52. Ke5 {[%clk 0:00:15]}  Rh3 {[%clk 0:00:29]} 53. Bb6 {[%clk 0:00:15]}  Kc6 {[%clk 0:00:29]} 54. a5 {[%clk 0:00:16]}  Rh1 {[%clk 0:00:28]} 55. f6 {[%clk 0:00:16]}  Rh5+ {[%clk 0:00:29]} 56. Ke6 {[%clk 0:00:17]}  Rh8 {[%clk 0:00:27]} 57. f7 {[%clk 0:00:17]} 1-0


[Site "https://www.chess.com"]

[Event "Titled Tuesday Blitz August 08 Late 2023"]
[White "Reprintsev, Alexander"]
[Black "Di Berardino, Diego Rafael"]
[WhiteFideId "14100541"]
[BlackFideId "2105446"]
[WhiteElo "2511"]
[BlackElo "2611"]
[Result "0-1"]
[Round "10"]
[TimeControl "180+1"]
[Date "2023.08.08"]
[WhiteClock "0:00:38"]
[BlackClock "0:00:09"]
[Board "33"]

1. e4 {[%clk 0:03:00]}  c5 {[%clk 0:02:55]} 2. b3 {[%clk 0:02:56]}  g6 {[%clk 0:02:52]} 3. Bb2 {[%clk 0:02:55]}  Nf6 {[%clk 0:02:52]} 4. e5 {[%clk 0:02:54]}  Nd5 {[%clk 0:02:52]} 5. Nc3 {[%clk 0:02:54]}  Nb4 {[%clk 0:02:45]} 6. Ne4 {[%clk 0:02:44]}  Bg7 {[%clk 0:02:42]} 7. Nf3 {[%clk 0:02:39]}  O-O {[%clk 0:02:38]} 8. Nxc5 {[%clk 0:02:37]}  Qc7 {[%clk 0:02:33]} 9. a3 {[%clk 0:02:29]}  Nxc2+ {[%clk 0:02:16]} 10. Qxc2 {[%clk 0:02:27]}  b6 {[%clk 0:02:17]} 11. Qe4 {[%clk 0:02:21]}  bxc5 {[%clk 0:02:11]} 12. Qxa8 {[%clk 0:02:20]}  Nc6 {[%clk 0:02:10]} 13. Rc1 {[%clk 0:02:02]}  Bb7 {[%clk 0:02:08]} 14. Qxf8+ {[%clk 0:02:01]}  Kxf8 {[%clk 0:01:59]} 15. Rxc5 {[%clk 0:01:59]}  Qb6 {[%clk 0:01:54]} 16. b4 {[%clk 0:01:54]}  a6 {[%clk 0:01:43]} 17. Bc3 {[%clk 0:01:38]}  d6 {[%clk 0:01:29]} 18. exd6 {[%clk 0:01:38]}  exd6 {[%clk 0:01:29]} 19. Bxg7+ {[%clk 0:01:37]}  Kxg7 {[%clk 0:01:30]} 20. Rc3 {[%clk 0:01:36]}  a5 {[%clk 0:01:15]} 21. Be2 {[%clk 0:01:34]}  axb4 {[%clk 0:01:15]} 22. axb4 {[%clk 0:01:34]}  Nxb4 {[%clk 0:01:11]} 23. O-O {[%clk 0:01:33]}  Nd5 {[%clk 0:01:10]} 24. Ra3 {[%clk 0:01:19]}  Nf4 {[%clk 0:01:08]} 25. Bd1 {[%clk 0:01:09]}  Be4 {[%clk 0:00:35]} 26. Re1 {[%clk 0:01:07]}  d5 {[%clk 0:00:35]} 27. Rae3 {[%clk 0:00:52]}  Qb4 {[%clk 0:00:29]} 28. g3 {[%clk 0:00:46]}  Nh3+ {[%clk 0:00:20]} 29. Kf1 {[%clk 0:00:43]}  Qb5+ {[%clk 0:00:13]} 30. Be2 {[%clk 0:00:41]}  Qb2 {[%clk 0:00:13]} 31. d3 {[%clk 0:00:39]}  Bxf3 {[%clk 0:00:09]} 32. Bxf3 {[%clk 0:00:38]}  Qxf2# {[%clk 0:00:09]} 0-1


[Site "https://www.chess.com"]

[Event "Titled Tuesday Blitz August 08 Late 2023"]
[White "Moral Garcia, Serafin"]
[Black "Delorme, Axel"]
[WhiteFideId "2201925"]
[BlackFideId "632023"]
[WhiteElo "2574"]
[BlackElo "2496"]
[Result "1-0"]
[Round "10"]
[TimeControl "180+1"]
[Date "2023.08.08"]
[WhiteClock "0:01:17"]
[BlackClock "0:00:18"]
[Board "35"]

1. e4 {[%clk 0:02:53]}  c5 {[%clk 0:02:59]} 2. Nf3 {[%clk 0:02:52]}  d6 {[%clk 0:02:59]} 3. d4 {[%clk 0:02:52]}  cxd4 {[%clk 0:03:00]} 4. Nxd4 {[%clk 0:02:53]}  Nf6 {[%clk 0:03:01]} 5. Nc3 {[%clk 0:02:53]}  a6 {[%clk 0:03:01]} 6. Be3 {[%clk 0:02:53]}  e5 {[%clk 0:03:00]} 7. Nf3 {[%clk 0:02:53]}  Qc7 {[%clk 0:02:59]} 8. a4 {[%clk 0:02:52]}  b6 {[%clk 0:02:58]} 9. Nd5 {[%clk 0:02:50]}  Nxd5 {[%clk 0:02:57]} 10. Qxd5 {[%clk 0:02:48]}  Bb7 {[%clk 0:02:56]} 11. Qb3 {[%clk 0:02:39]}  Nd7 {[%clk 0:02:54]} 12. Bc4 {[%clk 0:02:29]}  Nc5 {[%clk 0:02:53]} 13. Bxc5 {[%clk 0:02:28]}  bxc5 {[%clk 0:02:32]} 14. Ng5 {[%clk 0:02:25]}  h6 {[%clk 0:02:10]} 15. Nxf7 {[%clk 0:02:18]}  Rh7 {[%clk 0:02:09]} 16. Bd5 {[%clk 0:02:04]}  Rb8 {[%clk 0:02:06]} 17. Bxb7 {[%clk 0:01:55]}  Rxb7 {[%clk 0:01:47]} 18. Qe6+ {[%clk 0:01:53]}  Be7 {[%clk 0:01:47]} 19. O-O-O {[%clk 0:01:48]}  Rb6 {[%clk 0:01:30]} 20. Nxd6+ {[%clk 0:01:44]}  Rxd6 {[%clk 0:01:27]} 21. Rxd6 {[%clk 0:01:43]}  Qxd6 {[%clk 0:01:25]} 22. Qg8+ {[%clk 0:01:42]}  Bf8 {[%clk 0:01:19]} 23. Qxh7 {[%clk 0:01:40]}  c4 {[%clk 0:01:15]} 24. Rd1 {[%clk 0:01:34]}  Qc6 {[%clk 0:00:53]} 25. Qf5 {[%clk 0:01:30]}  Qc7 {[%clk 0:00:35]} 26. Qe6+ {[%clk 0:01:22]}  Be7 {[%clk 0:00:35]} 27. c3 {[%clk 0:01:22]}  a5 {[%clk 0:00:18]} 28. Rd5 {[%clk 0:01:17]} 1-0


[Site "https://www.chess.com"]